Cogmind - Beta 11.1 @@@ ROGUE MODE // 2022.05.15 @ 12:34:35 Player: Owlsley Result: Destroyed by H-61 Shepherd with Heavy Assault Cannon Performance ------------- Evolutions (2) 1000 Regions Visited (5) 1000 Robots Destroyed (51) 255 Value Destroyed (1247) 1247 Prototype IDs (2) 40 Alien Tech Used (0) 0 Bonus (-176) -176 TOTAL SCORE: 3366 Bonus ------- Follower Combat Kills 122 Friendly Fire -298 Cogmind --------- Core Integrity 0/550 Matter 291/300 Energy 100/100 System Corruption 0% Temperature Cool (0) Movement Walking (190) Ox1 Location -8/Materials Parts ------- > --- POWER (1) -------- (None) > --- PROPULSION (2) --- Improved Carbon-fiber Leg > --- UTILITY (6) ------ Improved Heat Sink Large Storage Unit Visual Processing Unit > --- WEAPON (2) ------- Hammer > --- INVENTORY (15) --- Weight Redist. System Structural Scanner Sensor Array Improved Terrain Scanner Seismic Detector Microactuators Microactuators ECM Suite Propulsion Shielding Hacking Suite System Shield Peak State ------------ > --- POWER ------------ Ion Engine > --- PROPULSION ------- Improved Carbon-fiber Leg Improved Carbon-fiber Leg > --- UTILITY ---------- Heat Sink Improved Heat Sink Improved Heat Sink Large Storage Unit Visual Processing Unit Improved Targeting Computer > --- WEAPON ----------- Field Laser Beam Cannon > --- INVENTORY -------- Improved Carbon-fiber Leg Improved Carbon-fiber Leg Weight Redist. System Structural Scanner Sensor Array Improved Terrain Scanner Seismic Detector Microactuators Microactuators ECM Suite Propulsion Shielding Hacking Suite System Shield EM Shotgun Hammer [Rating: 28] Favorites ----------- Power Ion Engine Engine Ion Engine Propulsion Light Treads Treads Light Treads Leg Improved Carbon-fiber Leg Utility Large Storage Unit Device Heat Sink Storage Large Storage Unit Processor Visual Processing Unit Protection Light Armor Plating Weapon Beam Cannon Energy Gun Medium Laser Energy Cannon Beam Cannon Ballistic Gun Assault Rifle Special Weapon Plasma Flamer Impact Weapon Hammer Build | -11 -10 -10 -10 -9 -8 ------- Run | Scr Mat Min Exi Min Mat Slots Evolved 4 | . . . . . 4 Power . | . . . . . . Propulsion . | . . . . . . Utility 4 | . . . . . 4 Weapon . | . . . . . . Parts Attached 35 | 3 12 . . 4 16 Power 2 | . 1 . . . 1 Engine 2 | . 1 . . . 1 Core . | . . . . . . Reactor . | . . . . . . Propulsion 13 | 2 5 . . 1 5 Treads 9 | 2 5 . . 1 1 Leg 4 | . . . . . 4 Wheel . | . . . . . . Hover . | . . . . . . Flight . | . . . . . . Utility 11 | 1 3 . . 1 6 Device 7 | 1 2 . . . 4 Storage 1 | . 1 . . . . Processor 2 | . . . . . 2 Hackware . | . . . . . . Protection 1 | . . . . 1 . Artifact . | . . . . . . Weapon 9 | . 3 . . 2 4 Energy Gun 5 | . 2 . . . 3 Energy Cannon 1 | . 1 . . . . Ballistic Gun 1 | . . . . 1 . Ballistic Cannon . | . . . . . . Launcher . | . . . . . . Special Weapon 1 | . . . . 1 . Impact Weapon 1 | . . . . . 1 Slashing Weapon . | . . . . . . Piercing Weapon . | . . . . . . Special Melee Weapon . | . . . . . . Unidentified Prototypes . | . . . . . . Parts Lost 12 | . . . . . 12 Power 2 | . . . . . 2 Propulsion 2 | . . . . . 2 Utility 5 | . . . . . 5 Weapon 3 | . . . . . 3 Highest Loss Streak 10 | . . . . . 10 To Critical Strikes . | . . . . . . Average Slot Usage (%) 98 | . 99 100 100 100 86 Engine 13 | . 14 14 14 14 7 Treads 24 | . 28 28 28 28 1 Leg 1 | . . . . . 15 Device 11 | . 13 14 14 2 14 Storage 13 | . 14 14 14 14 9 Processor 1 | . . . . . 15 Protection 2 | . . . . 11 5 Energy Gun 10 | . 13 14 14 . 7 Energy Cannon 9 | . 2 14 14 14 7 Ballistic Gun 6 | . 12 . . 11 1 Naked Turns . | . . . . . . Heaviest Build 36 | 14 31 31 31 33 36 Greatest Support 40 | 40 40 40 40 40 40 Greatest Overweight (x) 1 | . . . . . 1 Average Overweight (x) . | . . . . . . Largest Inventory Capacity 15 | 8 15 15 15 15 15 Average Capacity 14 | 8 13 15 15 15 15 Most Carried 15 | 8 15 15 15 15 15 Average Carried 13 | 6 12 15 14 14 14 Final Capacity 15 | 8 15 15 15 15 15 Final Carried 15 | 8 15 15 15 15 11 Class Distribution -------------------- 97% | Mutant Dominant Class ---------------- Mutant | -10/Materials Mutant | -10/Mines Mutant | -10/Exiles Mutant | -9/Mines Mutant | -8/Materials Resources | -11 -10 -10 -10 -9 -8 ----------- Run | Scr Mat Min Exi Min Mat Matter Collected 717 | 218 301 . . 74 124 Remotely . | . . . . . . Salvage Created 1689 | 99 576 161 . 277 576 Parts 82 | 7 35 5 . 11 24 Haulers Intercepted 2 | . 1 . . . 1 Recyclers Shooed 1 | . . . . 1 . Parts Field Recycled . | . . . . . . Retrieved Matter . | . . . . . . Parts Self-Destructed . | . . . . . . Prevented . | . . . . . . Kills | -11 -10 -10 -10 -9 -8 ------- Run | Scr Mat Min Exi Min Mat Combat Hostiles Destroyed 38 | . 15 2 . 6 15 Melee 1 | . . . . . 1 Guns 23 | . 13 . . 2 8 Cannons 12 | . 2 1 . 3 6 AOE 1 | . . 1 . . . Classes Destroyed 11 | 2 5 1 . . 3 Worker 2 | . . 2 . . . Tunneler 1 | 1 . . . . . Hauler 2 | . 1 . . . 1 Recycler 2 | 1 . 1 . . . Mechanic 1 | . 1 . . . . Operator 1 | . . . . . 1 Watcher 3 | . 3 . . . . Swarmer 14 | . 6 1 . . 7 Grunt 22 | . 9 2 . 6 5 Duelist 1 | . . . . . 1 Sentry 2 | . . . . . 2 Best Kill Streak 4 | 2 4 2 . 3 4 Combat Bots Only 4 | . 4 1 . 3 4 Max Kills in Single Turn 2 | 1 2 2 . 1 1 Gunslinging 1 | . 1 . . . . Exploded 1 | . . 1 . . . Melee 1 | . . . . . 1 Uniques/NPCs Destroyed . | . . . . . . Combat | -11 -10 -10 -10 -9 -8 -------- Run | Scr Mat Min Exi Min Mat Damage Taken 2302 | . 525 96 . 135 1546 Core 718 | . 124 . . 25 569 Absorbed by Shields . | . . . . . . Regen/Repaired (Parts) 66 | . 66 . . . . Core Remaining (%) 70 | 100 . . . 40 . Volleys Fired 121 | 3 55 7 . 14 42 Largest 2 | 2 2 2 . 2 2 Hottest 160 | 40 110 110 . 160 123 Shots Fired 238 | 6 110 14 . 28 80 Gun 177 | 6 107 7 . 13 44 Cannon 60 | . 3 7 . 14 36 Launcher . | . . . . . . Special 1 | . . . . 1 . Kinetic 75 | 6 53 . . 13 3 Thermal 161 | . 57 14 . 15 75 Explosive . | . . . . . . Electromagnetic 2 | . . . . . 2 Robot Hit Streak 12 | 3 10 6 . 5 12 Robot Miss Streak 4 | 1 4 2 . 3 3 Penetration Max . | . . . . . . Secondary Targets 1 | . 1 . . . . Max Gunslinging Chain 1 | . 1 . . . . Shots Hit Robots 159 | 4 70 9 . 16 60 Core Hits 74 | 3 32 6 . 7 26 Critical Kills 3 | 1 . . . 1 1 Critical Parts Destroyed 1 | . 1 . . . . Critical Strikes 13 | 1 8 . . 1 3 Burn 9 | . 7 . . . 2 Meltdown 1 | . . . . 1 . Destroy 2 | 1 1 . . . . Smash 1 | . . . . . 1 Melee Attacks 7 | . . . . . 7 Impact 7 | . . . . . 7 Slashing . | . . . . . . Piercing . | . . . . . . Sneak Attacks . | . . . . . . Combat Hostiles . | . . . . . . Follow-up Attacks . | . . . . . . Damage Inflicted 2615 | 35 969 391 . 257 963 Guns 1619 | 35 932 65 . 91 496 Cannons 629 | . 37 74 . 143 375 Explosions 252 | . . 252 . . . Melee 92 | . . . . . 92 Ramming 9 | . . . . 9 . Kinetic 566 | 35 420 . . 91 20 Thermal 1922 | . 549 391 . 157 825 Explosive . | . . . . . . Electromagnetic 26 | . . . . . 26 Impact 92 | . . . . . 92 Slashing . | . . . . . . Piercing . | . . . . . . Highest Corruption . | . . . . . . Average Corruption . | . . . . . . Corruption Purged . | . . . . . . Corruption Blocked . | . . . . . . Overload Shots . | . . . . . . Overflow Damage 46 | . . 46 . . . Projectiles . | . . . . . . Explosions 46 | . . 46 . . . Melee . | . . . . . . Knockbacks . | . . . . . . Impact . | . . . . . . Kinetic . | . . . . . . Secondary . | . . . . . . Self-Inflicted Damage 96 | . . 96 . . . Shots 2 | . . 2 . . . Rammed 1 | . . . . 1 . Targets Rammed 1 | . . . . 1 . Kicked . | . . . . . . Crushed . | . . . . . . Highest Temperature 180 | . 48 54 . 180 39 Average Temperature 40 | . 17 22 . 67 11 Received Heat Transfer 783 | . 216 . . 81 486 Siege Activations . | . . . . . . Robots Corrupted . | . . . . . . Combat Hostiles . | . . . . . . Parts Fried . | . . . . . . Impact Corruptions . | . . . . . . Robots Melted 1 | . . . . 1 . Combat Hostiles 1 | . . . . 1 . Parts Melted 19 | . 6 2 . 2 9 Heat Transferred 4992 | . 2035 583 . 376 1998 Parts Sabotaged . | . . . . . . Parts Stolen . | . . . . . . Parts Stripped . | . . . . . . Power Chain Reactions . | . . . . . . Missiles Intercepted . | . . . . . . Alert | -11 -10 -10 -10 -9 -8 ------- Run | Scr Mat Min Exi Min Mat Peak Influence 390 | 10 329 166 . 113 390 Initial 42 | . 6 42 . . . Average 100 | 7 133 80 . 34 164 Maximum Alert Level 1 | . 1 . . . 1 Low Security (%) 88 | 100 81 100 . 100 63 Level 1 11 | . 18 . . . 36 Level 2 . | . . . . . . Level 3 . | . . . . . . Level 4 . | . . . . . . Level 5 . | . . . . . . High Security . | . . . . . . Max Security . | . . . . . . Squads Dispatched 6 | . 4 . . . 2 Investigation 3 | . 3 . . . . Extermination . | . . . . . . Reinforcement 3 | . 1 . . . 2 Assault . | . . . . . . Garrison . | . . . . . . Intercept . | . . . . . . Searches Triggered . | . . . . . . Construction Impeded . | . . . . . . Haulers Reinforced . | . . . . . . Active Scanning Responses . | . . . . . . Cargo Convoy Interrupts . | . . . . . . Stealth | -11 -10 -10 -10 -9 -8 --------- Run | Scr Mat Min Exi Min Mat Distress Signals 7 | . 2 . . 1 4 Communications Jammed . | . . . . . . Distress Signals . | . . . . . . Times Spotted 65 | . 26 8 . 10 21 Peak Tracking Total 5 | . 4 3 . 3 5 Tactical Retreats 5 | . 1 . . 2 2 Traps | -11 -10 -10 -10 -9 -8 ------- Run | Scr Mat Min Exi Min Mat Traps Triggered 1 | . 1 . . . . Indirectly . | . . . . . . Trap Hack Attempts . | . . . . . . Triggered . | . . . . . . Disarmed . | . . . . . . Reprogrammed . | . . . . . . Reused . | . . . . . . Traps Extracted . | . . . . . . Installed . | . . . . . . Triggered . | . . . . . . Machines | -11 -10 -10 -10 -9 -8 ---------- Run | Scr Mat Min Exi Min Mat Machines Disabled 5 | . . 4 . . 1 Max in Single Turn 4 | . . 4 . . 1 Machines Sabotaged . | . . . . . . Garrisons Compromised . | . . . . . . Overloaded Fab Kills . | . . . . . . Hacking | -11 -10 -10 -10 -9 -8 --------- Run | Scr Mat Min Exi Min Mat Machines Accessed 11 | . 8 . 1 . 2 Terminals 7 | . 5 . . . 2 Fabricators . | . . . . . . Repair Stations 1 | . 1 . . . . Recycling Units 2 | . 2 . . . . Scanalyzers . | . . . . . . Garrison Access . | . . . . . . Total Hacks 42 | . 31 . 1 . 10 Successful 22 | . 17 . 1 . 4 Failed 19 | . 13 . . . 6 Catastrophic 1 | . 1 . . . . Database Lockouts 1 | . 1 . . . . Manual 25 | . 21 . . . 4 Terminals 34 | . 24 . . . 10 Fabricators . | . . . . . . Repair Stations 2 | . 2 . . . . Recycling Units 5 | . 5 . . . . Scanalyzers . | . . . . . . Garrison Access . | . . . . . . Terminal Hacks 13 | . 9 . 1 . 3 Record 1 | . . . 1 . . Part Schematic 3 | . 3 . . . . Robot Analysis 2 | . 2 . . . . Prototype ID Bank 1 | . 1 . . . . Terminal Index 1 | . . . . . 1 Locate Traps 1 | . 1 . . . . Transport Status 1 | . . . . . 1 Recall Investigation 1 | . 1 . . . . Hauler Manifests 2 | . 1 . . . 1 Fabricator Hacks . | . . . . . . Repair Station Hacks 2 | . 2 . . . . Scan Component 1 | . 1 . . . . Repair 1 | . 1 . . . . Recycling Unit Hacks 1 | . 1 . . . . Retrieve Components 1 | . 1 . . . . Scanalyzer . | . . . . . . Garrison Access Hacks . | . . . . . . Unauthorized Hacks 6 | . 5 . . . 1 Terminals 3 | . 2 . . . 1 Disrupt 1 | . 1 . . . . Operators 2 | . 1 . . . 1 Fabricators . | . . . . . . Repair Stations . | . . . . . . Recycling Units 3 | . 3 . . . . Mask 2 | . 2 . . . . Tunnel 1 | . 1 . . . . Scanalyzers . | . . . . . . Garrison Access . | . . . . . . Data Cores Recovered . | . . . . . . Used . | . . . . . . Hacking Detections 9 | . 7 . . . 2 Full Trace Events 1 | . 1 . . . . Feedback Events . | . . . . . . Feedback Blocked . | . . . . . . Robot Schematics Acquired . | . . . . . . Robots Built . | . . . . . . Authchips . | . . . . . . Time . | . . . . . . Total Robot Build Rating . | . . . . . . Part Schematics Acquired 3 | . 3 . . . . Parts Built . | . . . . . . Authchips . | . . . . . . Time . | . . . . . . Total Part Build Rating . | . . . . . . Parts Repaired 1 | . 1 . . . . Time 26 | . 26 . . . . Parts Recycled . | . . . . . . Recycled Matter . | . . . . . . Retrieved Matter . | . . . . . . Retrieved Components 1 | . 1 . . . . Parts Scanalyzed . | . . . . . . Part Schematics Acquired . | . . . . . . Parts Damaged . | . . . . . . Bothacking | -11 -10 -10 -10 -9 -8 ------------ Run | Scr Mat Min Exi Min Mat Used RIF Installer . | . . . . . . Robots Hacked . | . . . . . . Non-combat . | . . . . . . Combat . | . . . . . . Robot Hacks Applied . | . . . . . . Relay Couplers Released . | . . . . . . Fabnet Peak Effective % . | . . . . . . Robots Rewired . | . . . . . . Allies Hacked . | . . . . . . Hacks Repelled . | . . . . . . Allies | -11 -10 -10 -10 -9 -8 -------- Run | Scr Mat Min Exi Min Mat Total Allies 3 | . . 3 . . . Largest Group 3 | . . 3 1 1 . Highest-Rated Group 40 | . . 40 13 13 . Highest-Rated Ally 16 | . . 16 13 13 . Total Orders . | . . . . . . Ally Attacks 46 | . . 37 . 9 . Total Damage 480 | . . 361 . 119 . Kills 8 | . . 6 . 2 . Allies Corrupted . | . . . . . . Allies Melted . | . . . . . . Intel | -11 -10 -10 -10 -9 -8 ------- Run | Scr Mat Min Exi Min Mat Robot Analysis Total 2 | . 2 . . . . Derelict Logs Recovered 5 | . . 3 . 2 . Drone Launches . | . . . . . . Drone Recoveries . | . . . . . . Exploration | -11 -10 -10 -10 -9 -8 ------------- Run | Scr Mat Min Exi Min Mat Turns Passed 4090 | 52 1452 1032 276 807 471 Spaces Moved 2187 | 22 729 592 172 453 219 Core . | . . . . . . Treads 1987 | 22 729 592 172 453 19 Legs 200 | . . . . . 200 Wheels . | . . . . . . Hover . | . . . . . . Flight . | . . . . . . Fastest Speed 120 | 160 160 160 160 160 120 Average Speed 156 | 160 160 160 160 160 127 Slowest Speed 190 | 160 160 160 160 160 190 Overloaded Moves . | . . . . . . Propulsion Burnouts . | . . . . . . Robots Hopped . | . . . . . . Cave-ins Triggered . | . . . . . . Exploration Rate (%) 55 | 2 91 99 51 69 23 Regions Visited 5 Branch Regions 3 Pre-discovered Areas 5 | . 1 1 1 2 . Known Exits Taken . | . . . . . . Unknown Exits Taken 5 | 1 1 1 1 1 . Scrap Searched 3 | . . 1 . 2 . Spaces Dug . | . . . . . . Terrain Destroyed 17 | . . 17 . . . Melee . | . . . . . . Projectile . | . . . . . . AOE 17 | . . 17 . . . Terrain Rammed . | . . . . . . Walls Destroyed . | . . . . . . Machines Disabled . | . . . . . . Actions | -11 -10 -10 -10 -9 -8 --------- Run | Scr Mat Min Exi Min Mat Total 2610 | 33 912 663 173 511 318 Wait 187 | . 86 65 . 17 19 Move 2182 | 21 728 591 171 452 219 Hop . | . . . . . . Pick Up 36 | 4 14 . 1 10 7 Fast Attach 12 | 1 2 . . 2 7 Attach 8 | . 1 . . . 7 Detach 1 | . 1 . . . . Swap 15 | 2 9 . . 2 2 Drop 40 | 2 16 . 1 13 8 Fire 121 | 3 55 7 . 14 42 Melee 7 | . . . . . 7 Ram . | . . . . . . Kick . | . . . . . . Crush 1 | . . . . 1 . Escape Stasis . | . . . . . . Rewire . | . . . . . . Trap . | . . . . . . Miscellaneous . | . . . . . . Route ------- -11/Scrapyard -10/Materials (discovered 5 exits: [*Mat x3] / [*Min x2]) -10/Mines (discovered 3 exits: [*Mat x2] / *Exi) -10/Exiles -9/Mines -8/Materials History --------- Turn | Location | Event 7 | -11/Scrapyard | Discovered new exit (range 3) 53 | -11/Scrapyard | Entered Materials 112 | -10/Materials | Discovered new exit (range 11) 123 | -10/Materials | Discovered new exit (range 13) 300 | -10/Materials | Build established: Mutant 517 | -10/Materials | Central database locked down 631 | -10/Materials | Discovered new exit (range 9) 769 | -10/Materials | Discovered new exit (range 5) 1158 | -10/Materials | Repaired Med. Laser 1312 | -10/Materials | Discovered new exit (range 8) 1505 | -10/Materials | Entered Mines 1573 | -10/Mines | Assisted by bots powering up and referring to "LRC-V3" 1649 | -10/Mines | Discovered new exit (range 7) 1769 | -10/Mines | Discovered new exit (range 8) 2045 | -10/Mines | Learned location of Mines (-9) 2454 | -10/Mines | Learned Materials non-interactive machine intel 2528 | -10/Mines | Deemed a non-threat by the Exiles lab entrance 2528 | -10/Mines | Discovered new exit (range 5) 2537 | -10/Mines | Entered Exiles 2537 | -10/Exiles | Accompanied by 1 ally 2581 | -10/Exiles | Met 8R-AWN 2603 | -10/Exiles | Met EX-HEX 2649 | -10/Exiles | Met EX-BIN 2670 | -10/Exiles | Met EX-DEC 2681 | -10/Exiles | Learned location of Zion (-7) 2726 | -10/Exiles | Discovered new exit (range 14) 2813 | -10/Exiles | Entered Mines 2813 | -9/Mines | Accompanied by 1 ally 2814 | -9/Mines | Learned location of Storage (-7) 2815 | -9/Mines | Learned Materials emergency access door positions 2842 | -9/Mines | A weapon hastily lodged in a ceiling crevice suddenly fell to the ground 2954 | -9/Mines | Joined a pair of Derelicts in attacking an 0b10 outpost 3042 | -9/Mines | Discovered new exit (range 12) 3155 | -9/Mines | Core integrity fell below 50% 3486 | -9/Mines | Assembled infested the area 3620 | -9/Mines | Entered Materials 3620 | -8/Materials | Evolved 4 slots: Utility x4 3622 | -8/Materials | Loaded intel: 28 non-interactive machine locations 4064 | -8/Materials | Core integrity fell below 50% 4070 | -8/Materials | Core integrity fell below 20% 4091 | -8/Materials | Destroyed by H-61 Shepherd with Heavy Assault Cannon Last Messages --------------- 04063_ Penetrated by Slug. 04063_ Knocked back. 04064_ Acquired 15 matter. 04064_ U-05 Engineer builds a Wall. 04067_ Knocked back. 04068_ U-05 Engineer builds a Wall. 04069_ Knocked back. 04072_ Acquired 1 matter. 04073_ U-05 Engineer builds a Wall. 04074_ G-47 Trooper IFF system glitched. 04074_ U-05 Engineer destroyed. 04076_ H-61 Shepherd calls for reinforcements. 04076_ ALERT: Hostile activity reported, dispatching reinforcements to area. 04080_ Slug penetrates Wall. 04083_ U-05 Engineer builds a Wall. 04086_ Knocked back. 04089_ W-25 Informer sends out distress signal. 04089_ Critical hit (Burn: +37). 04091_ Penetrated by Slug. Map ----- +----------------------------------------------------+ | ?????????????????????????????????????????????? | | ?????????????????????????????????????????????? | | ?????????????????????????????????????????????? | | ?????????????????????????????????????????????? | | ?????????????????????????????????????????????? | | ???????????????????????????????????????????o?? | | ?????????????????????????????????????????????? | | ???????????????????????? ??????????????????? | | ???????????????????????? ????????????????? | | ???????????????????????? ?????????????? | | ???????????????????????? ???????????? | | ???????????????????????? #?????????? | | ???????????????????????? #?????????? | | ???????????????????????? ! #?????????? | | ???????????????????????? ###???????? | | ???????????????????????# ??????? | | ???????????????????????#]] ??????? | | ???????????????????????#]! [ ????????? | | ???????????????????????# w #?????????? | | ???????????????????????# w#?????????? | | ???????????????????????# ! #?????????? | | ????????????????######## #?????????? | | ????????????????# ] # ! ?######????? | | ????????????????# *!*[# """"" ????? | | ????????????????# ==H%gu """"" = ????? | | ????????????????# ==!@ # """"" ????? | | ????????????????# =!= # """"" #???? | | ???????????????## %%%% # """"" #???? | | ???????????????######### """"" #???? | | ???????????????????##? # "%""" #???? | | ??????????????????????## #???? | | ???????????????????????# +???? | | ???????????????????????# ###### #??"" | | ???????????????????????# #??????#%#??"" | | ?????????+?????????????# #??????# #??"" | | ????????# ?????????????# #??????# #???? | | ????????# #????????????# ########+##### | | ????????# #????????????# ## | | ????????# #????????????# ## """"" | | ######??# #????????????# T# ""T"" """ | | # ??# #????????????# ## """ | | # ?# #????????????# ## """ | | # ?# ###??????????# ##[ %%= | | # # #T############ ##########+## | | # """ # ! %= % %% | | ? """"" + * = = | | ? """"" #==[ [[ ** | | ? """"" #[*%##########+########+###########+## | | ? """ ?# % #???????#=% #?????????# % | | ?? ?# #???????# """#?????????# """ ! | +----------------------------------------------------+ Best States ------------- Heat Dissipation 69 Energy Generation 10 Energy Capacity 250 Matter Stores 300 Matter Capacity 300 Sight Range 18 Terrain Scan Density 10 Armor Coverage 150 Evasion (%) 55 Targeting Accuracy 6 Recoil Reduction 2 Item Schematics ----------------- Med. Storage Unit | -10/Materials | Hacked Sml. Storage Unit | -10/Materials | Hacked Huge Storage Unit | -10/Materials | Hacked Robot Schematics ------------------ None Fabricated ------------ Nothing Alien Tech Used ----------------- None Achievements -------------- None Challenges ------------ None Game ------ Seed CompositeBattleSword Manual? 0 Play Time 00:24:04 Cumulative 290.3 hours Start 2022.05.15 @ 12:05:52 End 2022.05.15 @ 12:34:35 Sessions 1 Manual Loads 0 Difficulty Rogue Special Mode None Game No. 215 Rogue 187 Adventurer 10 Explorer 18 Win Type - Total 36 Types 17/1/3/9/1/0/1/1/3 Lore% 77 Gallery% 85 Achievement% 75 Wizard Run 0 Options --------- ASCII 0 Keyboard 0 Movement Mouse Keybinds 0 Fullscreen 1 Font 18/SmallcapsGlow Map View 76x50 Tactical HUD 1 Map Filters NONE Filters NONE Steam 1 RUN: 0f5c7ca7-5b03-481c-8107-7190a4b8883d